bitfinex-derivatives/quotes_BTCF0:USTF0_20250330
["timestamp","ask_amount","ask_price","bid_price","bid_amount"]
[1743340984549,0.19616404,83120.0,83119.0,0.0675]
[1743340984843,0.55696404,83120.0,83119.0,0.0675]
[1743340985731,0.19616404,83120.0,83119.0,0.0675]
[1743340985931,0.55696404,83120.0,83119.0,0.0675]
[1743340987432,0.55696404,83120.0,83119.0,0.0365]
[1743340987632,0.55696404,83120.0,83119.0,0.0357]
[1743340988642,0.55696404,83120.0,83119.0,0.03642]
[1743340988938,0.19616404,83120.0,83119.0,0.03642]
[1743340989142,0.55696404,83120.0,83119.0,0.03642]
[1743340989441,0.19616404,83120.0,83119.0,0.06662]
[1743340991645,0.55696404,83120.0,83119.0,0.06662]
[1743340993242,0.55696404,83120.0,83119.0,0.0659]
[1743340995645,0.55696404,83120.0,83119.0,0.06666]
[1743340997140,0.55696404,83120.0,83119.0,0.0659]
[1743340997446,0.55696404,83120.0,83119.0,0.06662]
[1743340998037,0.19616404,83120.0,83119.0,0.06662]
[1743340998251,0.55696404,83120.0,83119.0,0.06662]
[1743340998943,0.19616404,83120.0,83119.0,0.06662]
[1743340999247,0.55696404,83120.0,83119.0,0.06662]
[1743340999749,0.55696404,83120.0,83119.0,0.00472]
[1743340999941,0.55696404,83120.0,83119.0,0.004]
[1743341001940,0.1203518,83113.0,83112.0,0.2161655]
[1743341002141,0.49179575,83113.0,83112.0,0.2168455]
[1743341002647,0.58409575,83113.0,83112.0,0.2168455]
[1743341003649,0.58509575,83113.0,83112.0,0.2168455]
[1743341003837,0.58509575,83113.0,83112.0,0.00076]
[1743341004044,0.58509575,83113.0,83111.0,0.0001804]
[1743341004045,0.1203532,83112.0,83111.0,0.0001804]
[1743341004243,0.13091715,83112.0,83111.0,0.0001804]
[1743341004445,0.19681715,83112.0,83111.0,0.0001804]
[1743341004939,0.1868932,83112.0,83111.0,0.0001804]
[1743341006447,0.1888932,83112.0,83111.0,0.0001804]
[1743341006855,0.9104932,83112.0,83111.0,0.0001804]
[1743341007751,0.1203633,83105.0,83104.0,0.2161655]
[1743341007953,0.5974433,83105.0,83104.0,0.2168855]
[1743341008147,0.5974433,83105.0,83104.0,0.2168055]
[1743341008350,0.5974433,83105.0,83104.0,0.00072]
[1743341008544,0.1203691,83101.0,83100.0,8e-05]
[1743341008851,0.4818091,83101.0,83100.0,8e-05]
[1743341009548,0.5450091,83101.0,83100.0,8e-05]
[1743341009752,0.5440091,83101.0,83100.0,8e-05]
[1743341010143,0.5430091,83101.0,83100.0,8e-05]
[1743341010344,0.5430091,83101.0,83100.0,0.00208]
[1743341010852,0.55207585,83101.0,83100.0,0.00408]
[1743341011159,0.0601883,83096.0,83092.0,0.0001804]
[1743341011454,0.4811807,83093.0,83092.0,0.0009804]
[1743341011752,0.4818207,83093.0,83092.0,0.0001804]
[1743341011954,0.49121946,83093.0,83092.0,0.0001804]
[1743341012156,0.49121946,83093.0,83092.0,0.0009004]
[1743341012561,0.49121946,83093.0,83092.0,0.0049004]
[1743341012854,0.49121946,83093.0,83092.0,0.0041804]
[1743341013455,0.49121946,83093.0,83092.0,0.0051804]
[1743341014360,0.49121946,83093.0,83092.0,0.0041804]
[1743341015267,0.49121946,83093.0,83092.0,0.0031804]
[1743341015860,0.59890459,83093.0,83092.0,0.0031804]
[1743341016548,0.59890459,83093.0,83092.0,0.0358804]
[1743341016948,0.71430459,83093.0,83092.0,0.0358804]
[1743341018456,0.35350459,83093.0,83092.0,0.0358804]
[1743341018660,0.71430459,83093.0,83092.0,0.0358804]
[1743341019456,0.35350459,83093.0,83092.0,0.0358804]
[1743341019652,0.71430459,83093.0,83092.0,0.0358804]
[1743341020043,0.60661946,83093.0,83092.0,0.0358804]
[1743341020452,0.66971946,83093.0,83092.0,0.0358804]
[1743341022560,0.30891946,83093.0,83092.0,0.0358804]
[1743341022759,0.66971946,83093.0,83092.0,0.0358804]
[1743341022955,0.30891946,83093.0,83092.0,0.0358804]
[1743341023153,0.66971946,83093.0,83092.0,0.0358804]
[1743341023350,0.66971946,83093.0,83092.0,0.0031804]
[1743341027262,0.66971946,83093.0,83092.0,0.0041804]
[1743341027757,0.66971946,83093.0,83092.0,0.0011804]
[1743341027950,0.6603207,83093.0,83092.0,0.0011804]
[1743341028663,0.6603207,83093.0,83092.0,0.0001804]
[1743341029354,0.2995207,83093.0,83092.0,0.0001804]
[1743341029663,1.0211207,83093.0,83092.0,0.0001804]
[1743341032267,1.20081118,83093.0,83092.0,0.0001804]
[1743341033065,1.17071118,83093.0,83092.0,0.0001804]
[1743341033455,1.17051118,83093.0,83092.0,0.0001804]
[1743341034861,1.17051118,83093.0,83085.0,8e-05]
[1743341034862,0.1203909,83086.0,83085.0,8e-05]
[1743341035092,0.1204039,83077.0,83076.0,8e-05]
[1743341035259,0.1204141,83070.0,83069.0,0.0311]
[1743341035459,0.49139907,83070.0,83069.0,0.03182]
[1743341035664,0.49139907,83070.0,83068.0,0.0305]
[1743341035665,0.1204155,83069.0,83068.0,0.0305]
[1743341035969,0.19280047,83069.0,83068.0,0.03122]
[1743341036164,0.1583755,83069.0,83068.0,0.03122]
[1743341036554,0.17054313,83069.0,83068.0,0.00072]
[1743341036754,0.29092425,83069.0,83068.0,0.00072]
[1743341036953,0.28892425,83069.0,83068.0,0.00072]
[1743341037856,0.28892425,83069.0,83068.0,0.00172]
[1743341038063,0.28892425,83069.0,83068.0,0.00472]
[1743341040269,0.28892425,83069.0,83068.0,0.00372]
[1743341040768,0.34748708,83069.0,83068.0,0.00372]
[1743341040966,0.120417,83068.0,83067.0,0.00048154]
[1743341041163,0.236257,83068.0,83067.0,0.00048154]
[1743341041368,0.298857,83068.0,83067.0,0.00048154]
[1743341041766,1.14083957,83068.0,83067.0,0.00048154]
[1743341042171,0.41923957,83068.0,83067.0,0.00048154]
[1743341042373,1.14083957,83068.0,83067.0,0.00048154]
[1743341045166,0.41923957,83068.0,83067.0,0.00048154]
[1743341045474,1.14083957,83068.0,83067.0,0.00048154]
[1743341046568,0.41923957,83068.0,83067.0,0.00048154]
[1743341046964,1.14083957,83068.0,83067.0,0.00048154]
[1743341047475,0.905257,83068.0,83067.0,0.00048154]
[1743341047675,1.020497,83068.0,83067.0,0.00048154]
[1743341052373,0.298897,83068.0,83067.0,0.00048154]
[1743341052574,0.40643826,83068.0,83067.0,0.00048154]
[1743341052777,1.12803826,83068.0,83067.0,0.00048154]
[1743341053780,0.40643826,83068.0,83067.0,0.00048154]
[1743341054176,1.12803826,83068.0,83067.0,0.00048154]
[1743341055772,1.020497,83068.0,83067.0,0.00048154]
[1743341057778,0.298897,83068.0,83067.0,0.00048154]
[1743341057984,1.020497,83068.0,83067.0,0.00048154]
[1743341059180,0.1204242,83063.0,83062.0,8e-05]
[1743341059385,0.1210642,83063.0,83062.0,8e-05]
[1743341059885,0.1204257,83062.0,83061.0,0.00018052]
[1743341060085,0.1841457,83062.0,83061.0,0.00018052]
[1743341060878,0.1831457,83062.0,83061.0,0.00018052]
[1743341062187,0.1831457,83062.0,83061.0,0.00218052]
[1743341062778,0.1831457,83062.0,83061.0,0.03228052]
[1743341066088,0.5439457,83062.0,83061.0,0.03228052]
[1743341066581,0.4809457,83062.0,83061.0,0.03228052]
[1743341066784,0.5961857,83062.0,83061.0,0.03228052]
[1743341066985,0.4809457,83062.0,83061.0,0.03228052]
[1743341067286,0.5961857,83062.0,83061.0,0.03228052]
[1743341067783,0.65474552,83062.0,83061.0,0.03228052]
[1743341069082,0.53950552,83062.0,83061.0,0.03228052]
[1743341071092,0.71973936,83062.0,83061.0,0.03228052]
[1743341072784,0.71973936,83062.0,83061.0,0.03308052]
[1743341073286,0.71973936,83062.0,83061.0,0.03228052]
[1743341075194,0.4809457,83062.0,83061.0,0.03228052]
[1743341075393,0.4809457,83062.0,83061.0,0.03300052]
[1743341075995,0.4809457,83062.0,83061.0,0.03228052]
[1743341076491,0.4809457,83062.0,83061.0,0.03300052]
[1743341076685,0.4809457,83062.0,83061.0,0.03228052]
[1743341076898,0.4809457,83062.0,83061.0,0.03300052]
[1743341077098,0.4809457,83062.0,83061.0,0.03228052]
[1743341078500,0.5135457,83062.0,83061.0,0.03228052]
[1743341079403,0.36152,83062.0,83061.0,0.15270762]
[1743341079604,0.00072,83062.0,83061.0,0.15342762]
[1743341079907,0.00072,83062.0,83061.0,1.68672762]
[1743341080201,0.18023384,83066.0,83065.0,0.1204213]
[1743341080398,0.18107384,83066.0,83065.0,0.1212613]
[1743341080701,0.18107384,83066.0,83065.0,0.2712613]
[1743341080895,0.18107384,83066.0,83065.0,0.3358613]
[1743341081896,0.18107384,83066.0,83065.0,0.3368613]
[1743341082201,0.18023384,83066.0,83065.0,0.3368613]
[1743341082401,0.18095384,83066.0,83065.0,0.3368613]
[1743341084201,0.30137374,83066.0,83065.0,0.3368613]
[1743341084795,0.18095384,83066.0,83065.0,0.3368613]
[1743341085004,0.18023384,83066.0,83065.0,0.3368613]
[1743341085207,0.1204164,83069.0,83068.0,0.120417]
[1743341086192,0.1204164,83069.0,83068.0,0.152217]
[1743341088304,0.1204164,83069.0,83068.0,0.153217]
[1743341089405,0.0910063,83071.0,83070.0,0.1204141]
[1743341089907,0.0308,83071.0,83070.0,0.13233115]
[1743341090102,0.0308,83071.0,83070.0,0.16483115]
[1743341090300,0.03152,83071.0,83070.0,0.16555115]
[1743341090607,0.06282,83071.0,83070.0,0.16555115]
[1743341091213,0.1832326,83071.0,83070.0,0.16555115]
[1743341092897,0.03202,83071.0,83070.0,0.16555115]
[1743341093101,0.00018052,83078.0,83077.0,0.1204039]
[1743341093314,0.00094052,83078.0,83077.0,0.1211639]
[1743341093897,0.00094052,83078.0,83077.0,1.6827639]
[1743341094104,0.00018052,83078.0,83077.0,1.6827639]
[1743341094302,0.00218052,83078.0,83077.0,1.6827639]
[1743341095002,0.00318052,83078.0,83077.0,1.6827639]
[1743341096702,0.00018052,83078.0,83077.0,1.6837639]
[1743341097011,0.00018052,83078.0,83077.0,0.1837639]
[1743341097210,0.00098052,83078.0,83077.0,0.1837639]
[1743341100403,0.00018052,83078.0,83077.0,0.1837639]
[1743341101114,0.00090052,83078.0,83077.0,0.1837639]
[1743341101419,0.12130302,83078.0,83077.0,0.1837639]
[1743341101605,0.18300302,83078.0,83077.0,0.1221639]
[1743341101803,0.19506665,83078.0,83077.0,0.1221639]
[1743341104914,0.19506665,83078.0,83077.0,0.00176]
[1743341105216,0.19506665,83078.0,83077.0,0.001]
[1743341106316,0.19506665,83078.0,83077.0,0.00172]
[1743341106518,0.1204039,83077.0,83076.0,8e-05]
[1743341106816,0.1518239,83077.0,83076.0,8e-05]
[1743341107117,0.1518239,83077.0,83070.0,0.120413]
[1743341107118,0.1204141,83071.0,83070.0,0.120413]
[1743341107311,0.4819341,83071.0,83070.0,0.121213]
[1743341107616,0.5444341,83071.0,83070.0,0.121213]
[1743341107806,0.5444341,83071.0,83070.0,0.0008]
[1743341108007,0.5444341,83071.0,83070.0,8e-05]
[1743341108207,0.5444341,83071.0,83064.0,0.1204216]
[1743341108208,0.1204213,83065.0,83064.0,0.1204216]
[1743341108414,0.1204228,83064.0,83063.0,0.1205041]
[1743341108712,0.5744228,83064.0,83063.0,0.1211441]
[1743341108912,0.5750628,83064.0,83063.0,0.1211441]
[1743341109108,0.5750628,83064.0,83063.0,0.00072]
[1743341109313,0.5740628,83064.0,83063.0,0.00072]
[1743341110719,0.58621304,83064.0,83063.0,0.00072]
[1743341111319,0.58621304,83064.0,83063.0,0.001]
[1743341111913,0.22541304,83064.0,83063.0,0.001]
[1743341112114,0.58621304,83064.0,83063.0,0.001]
[1743341112418,0.58621304,83064.0,83063.0,0.0018]
[1743341112621,0.58621304,83064.0,83063.0,0.001]
[1743341113114,0.58621304,83064.0,83063.0,0.1214242]
[1743341114917,0.5740628,83064.0,83063.0,0.1214242]
[1743341115122,0.5433628,83064.0,83063.0,0.1532242]
[1743341115305,0.5433628,83064.0,83063.0,0.1540642]
[1743341115515,0.5433628,83064.0,83063.0,0.1859642]
[1743341115714,0.5433628,83064.0,83063.0,1.6859642]
[1743341117223,0.1825628,83064.0,83063.0,1.6859642]
[1743341119514,0.1825628,83064.0,83063.0,0.1859642]
[1743341120122,0.1825628,83064.0,83063.0,1.6859642]
[1743341120413,0.1825628,83064.0,83063.0,0.1859642]
[1743341121810,0.1819228,83064.0,83063.0,0.1859642]
[1743341122026,0.1826428,83064.0,83063.0,0.1859642]
[1743341128227,0.1826428,83064.0,83063.0,0.00184]
[1743341128422,0.1826428,83064.0,83063.0,0.001]
[1743341131426,0.5434428,83064.0,83063.0,0.001]
[1743341134419,0.1826428,83064.0,83063.0,0.001]
[1743341134727,0.5434428,83064.0,83063.0,0.001]
[1743341136429,0.1826428,83064.0,83063.0,0.001]
[1743341136731,0.5434428,83064.0,83063.0,0.001]
[1743341137735,0.5434428,83064.0,83063.0,0.00176]
[1743341137935,0.5434428,83064.0,83063.0,0.03316]
[1743341138235,0.5434428,83064.0,83063.0,0.0324]
[1743341140031,0.5434428,83064.0,83063.0,0.001]
[1743341141427,0.1826428,83064.0,83063.0,0.001]
[1743341141628,0.5434428,83064.0,83063.0,0.001]
[1743341142531,0.1826428,83064.0,83063.0,0.001]
[1743341142731,0.5434428,83064.0,83063.0,0.001]
[1743341145134,0.1826428,83064.0,83063.0,0.001]
[1743341145335,0.5434428,83064.0,83063.0,0.001]
[1743341146332,0.1826428,83064.0,83063.0,0.001]
[1743341146531,0.5434428,83064.0,83063.0,0.001]
[1743341147433,0.1826428,83064.0,83063.0,0.001]
[1743341147837,0.5434428,83064.0,83063.0,0.001]
[1743341148238,0.1826428,83064.0,83063.0,0.001]
[1743341148435,0.5434428,83064.0,83063.0,0.0018]
[1743341148637,0.5434428,83064.0,83063.0,0.001]
[1743341149438,0.1826428,83064.0,83063.0,0.001]
[1743341149639,0.5434428,83064.0,83063.0,0.00172]
[1743341149834,0.5434428,83064.0,83063.0,0.001]
[1743341150543,0.1826428,83064.0,83063.0,0.001]
[1743341150744,0.5434428,83064.0,83063.0,0.00172]
[1743341150945,0.5434428,83064.0,83063.0,0.001]
[1743341154241,0.5434428,83064.0,83063.0,0.00172]
[1743341154548,0.5434428,83064.0,83063.0,0.0341]
[1743341159454,0.1826428,83064.0,83063.0,0.0341]
[1743341159655,0.5434428,83064.0,83063.0,0.03482]
[1743341159850,0.5434428,83064.0,83063.0,0.0341]
[1743341160259,0.5434428,83064.0,83063.0,0.0654]
[1743341161655,0.5434428,83064.0,83063.0,0.001]
[1743341162066,0.60199467,83064.0,83063.0,0.001]
[1743341163569,0.96279467,83064.0,83063.0,0.001]
[1743341166567,0.24119467,83064.0,83063.0,0.001]
[1743341166960,0.96279467,83064.0,83063.0,0.001]
[1743341169957,0.96279467,83064.0,83062.0,8e-05]
[1743341169958,0.1204242,83063.0,83062.0,8e-05]
[1743341170157,0.1204257,83062.0,83061.0,0.00018052]
[1743341170358,0.1204257,83062.0,83061.0,0.00026052]
[1743341170359,0.1817657,83062.0,83061.0,0.00026052]
[1743341170770,0.66295552,83062.0,83061.0,0.00026052]
[1743341171772,0.30215552,83062.0,83061.0,0.00026052]
[1743341171973,0.66295552,83062.0,83061.0,0.00026052]
[1743341172165,0.66195552,83062.0,83061.0,0.00026052]
[1743341172870,0.66195552,83062.0,83061.0,0.00226052]
[1743341173768,0.30115552,83062.0,83061.0,0.00226052]
[1743341173957,0.66195552,83062.0,83061.0,0.00226052]
[1743341174361,0.30115552,83062.0,83061.0,0.00226052]
[1743341174569,0.72050739,83062.0,83061.0,0.00226052]
[1743341174765,0.35970739,83062.0,83061.0,0.00226052]
[1743341174964,0.72050739,83062.0,83061.0,0.00226052]
[1743341177674,0.60011757,83062.0,83061.0,0.00226052]
[1743341177869,0.71531757,83062.0,83061.0,0.00226052]
[1743341178975,0.71531757,83062.0,83061.0,0.03256052]
[1743341182468,0.74691757,83062.0,83061.0,0.03256052]
[1743341183379,0.38611757,83062.0,83061.0,0.03256052]
[1743341183577,0.74691757,83062.0,83061.0,0.03256052]
[1743341184468,0.74691757,83062.0,83061.0,0.00226052]
[1743341184666,0.1204358,83055.0,83051.0,0.00048163]
[1743341184874,0.4812402,83052.0,83051.0,0.00048163]
[1743341185074,0.5971602,83052.0,83051.0,0.00048163]
[1743341185971,0.5971602,83052.0,83051.0,0.00148163]
[1743341186482,0.71756741,83052.0,83051.0,0.00148163]
[1743341187680,0.71756741,83052.0,83051.0,0.00048163]
[1743341188183,0.72671308,83052.0,83051.0,0.00048163]
[1743341190179,0.36591308,83052.0,83051.0,0.00048163]
[1743341190383,1.08751308,83052.0,83051.0,0.00048163]
[1743341190882,1.14606495,83052.0,83051.0,0.00048163]
[1743341191085,0.42446495,83052.0,83051.0,0.00048163]
[1743341191379,1.21016495,83052.0,83051.0,0.00048163]
[1743341192990,0.1204431,83050.0,83049.0,8e-05]
[1743341193284,0.1210831,83050.0,83049.0,8e-05]
[1743341194178,0.1204489,83046.0,83045.0,0.0318]
[1743341194383,0.1211689,83046.0,83045.0,0.0318]
[1743341194970,0.1827689,83046.0,83045.0,0.0318]
[1743341195375,0.19489454,83046.0,83045.0,0.0318]
[1743341196884,0.91649454,83046.0,83045.0,0.0318]
[1743341197583,0.1204518,83044.0,83043.0,0.00012096]
[1743341197881,0.1211318,83044.0,83043.0,0.00012096]
[1743341198278,0.30464771,83044.0,83043.0,0.00012096]
[1743341199384,0.1842318,83044.0,83043.0,0.00012096]
[1743341199786,0.2994318,83044.0,83043.0,0.00012096]
[1743341201286,0.2994318,83044.0,83043.0,0.06282096]
[1743341202584,0.6602318,83044.0,83043.0,0.06282096]
[1743341203492,0.6612318,83044.0,83043.0,0.06282096]
[1743341206193,0.3004318,83044.0,83043.0,0.06282096]
[1743341206794,0.6612318,83044.0,83043.0,0.06282096]
[1743341211095,0.3004318,83044.0,83043.0,0.06282096]
[1743341211294,0.6612318,83044.0,83043.0,0.06282096]
[1743341211494,0.3004318,83044.0,83043.0,0.06282096]
[1743341211693,0.6612318,83044.0,83043.0,0.06282096]
[1743341212197,0.6612318,83044.0,83041.0,8e-05]
[1743341212198,0.1204547,83042.0,83041.0,8e-05]
[1743341212392,0.1211347,83042.0,83041.0,8e-05]
[1743341212694,0.1204634,83036.0,83032.0,0.0314]
[1743341212889,0.4819834,83036.0,83032.0,0.0314]
[1743341213091,0.4819834,83036.0,83034.0,8e-05]
[1743341213297,0.4819834,83036.0,83033.0,0.0324]
[1743341213594,0.5458834,83036.0,83033.0,0.03248]
[1743341213998,0.66631381,83036.0,83033.0,8e-05]
[1743341214199,0.66631381,83036.0,83010.0,0.35996993]
[1743341214200,0.66631381,83036.0,83030.0,0.0324]
[1743341214390,0.66631381,83036.0,83033.0,8e-05]
[1743341215400,0.78151381,83036.0,83033.0,8e-05]
[1743341216492,1.14231381,83036.0,83033.0,8e-05]
[1743341216692,1.14231381,83036.0,83021.0,0.0318]
[1743341216894,1.14231381,83036.0,83033.0,8e-05]
[1743341217096,0.1204663,83034.0,83033.0,8e-05]
[1743341217299,0.120475,83028.0,83027.0,8e-05]
[1743341217493,0.481995,83028.0,83027.0,8e-05]
[1743341217799,0.1204866,83020.0,83017.0,0.065]
[1743341218003,0.5973666,83020.0,83019.0,0.03452181]
[1743341218192,0.5973666,83020.0,83019.0,0.06632181]
[1743341218700,0.6616666,83020.0,83019.0,0.06556181]
[1743341218911,0.6626666,83020.0,83019.0,0.06556181]
[1743341219292,1.0234666,83020.0,83019.0,0.06556181]
[1743341221195,0.1204953,83014.0,83013.0,8e-05]
[1743341221396,0.1205025,83009.0,83008.0,0.21636428]
[1743341221599,0.5965425,83009.0,83008.0,0.21628428]
[1743341222195,0.6615625,83009.0,83008.0,0.21628428]
[1743341222396,0.67352458,83009.0,83008.0,0.21700428]
[1743341222706,0.67280458,83009.0,83008.0,0.21628428]
[1743341222905,0.1205084,83005.0,83004.0,0.06008]
[1743341223103,0.4813084,83005.0,83004.0,0.06008]
[1743341223509,0.5134084,83005.0,83004.0,0.06008]
[1743341223707,0.5458084,83005.0,83004.0,0.06]
[1743341224497,0.5458084,83005.0,83004.0,0.0929]
[1743341227309,0.5458084,83005.0,83004.0,0.09362]
[1743341227501,0.65333545,83005.0,83004.0,0.09362]
[1743341227698,0.65333545,83005.0,83004.0,0.06362]
[1743341227900,0.65333545,83005.0,83004.0,0.00072]
[1743341228206,0.78302676,83005.0,83004.0,0.00072]
[1743341229304,0.42222676,83005.0,83004.0,0.00072]
[1743341229501,1.14382676,83005.0,83004.0,0.00072]
[1743341229902,1.14382676,83005.0,83004.0,0.03122]
[1743341230706,1.25906676,83005.0,83004.0,0.03122]
[1743341232308,1.15153971,83005.0,83004.0,0.06182]
[1743341232710,1.03106432,83005.0,83004.0,0.06182]
[1743341238809,0.1205098,83004.0,83003.0,0.00048191]
[1743341239007,0.1205098,83004.0,83003.0,0.00116191]
[1743341239207,0.1840098,83004.0,83003.0,0.00116191]
[1743341242111,0.2992498,83004.0,83003.0,0.00116191]
[1743341244706,1.0208498,83004.0,83003.0,0.00116191]
[1743341246715,0.2992498,83004.0,83003.0,0.00116191]
[1743341246916,1.0208498,83004.0,83003.0,0.00116191]
[1743341248217,0.2992498,83004.0,83003.0,0.00116191]
[1743341248407,1.0208498,83004.0,83003.0,0.00116191]
[1743341250113,1.0208498,83004.0,83000.0,30.1448]
[1743341250311,0.1205142,83001.0,83000.0,30.14544]
[1743341251103,0.30429322,83001.0,83000.0,30.14544]
[1743341251613,0.30429322,83001.0,83000.0,30.13584001]
[1743341251913,0.30429322,83001.0,83000.0,30.075552]
[1743341252117,0.30429322,83001.0,83000.0,30.02033201]
[1743341252518,0.30429322,83001.0,83000.0,30.01108202]
[1743341252713,0.30429322,83001.0,83000.0,30.00183203]
[1743341252916,0.30429322,83001.0,83000.0,29.94154402]
[1743341253112,0.30429322,83001.0,83000.0,29.83257601]
[1743341253622,0.30429322,83001.0,83000.0,29.772288]
[1743341253808,0.30429322,83001.0,83000.0,29.65171198]
[1743341254115,0.45429322,83001.0,83000.0,29.53164312]
[1743341254413,0.45429322,83001.0,83000.0,29.46786329]
[1743341254617,0.45429322,83001.0,83000.0,29.34728727]
[1743341254819,0.46029322,83001.0,83000.0,29.28698756]
[1743341255013,0.51889617,83001.0,83000.0,29.22668785]
[1743341255207,0.51889617,83001.0,83000.0,29.16638814]
[1743341255413,0.36889617,83001.0,83000.0,29.0008796]
[1743341255615,0.36889617,83001.0,83000.0,28.94057989]
[1743341255919,0.36889617,83001.0,83000.0,28.81998047]
[1743341256108,0.36889617,83001.0,83000.0,28.75968076]
[1743341256310,0.36889617,83001.0,83000.0,28.63908134]
[1743341256510,0.36889617,83001.0,83000.0,28.57878163]
[1743341256711,0.36889617,83001.0,83000.0,28.51848192]
[1743341256912,0.48417617,83001.0,83000.0,28.51848192]
[1743341257823,0.48417617,83001.0,83000.0,28.3978825]
[1743341258023,0.48417617,83001.0,83000.0,28.33758279]
[1743341258212,0.48417617,83001.0,83000.0,28.27728308]
[1743341258409,0.60808777,83001.0,83000.0,28.21698337]
[1743341259015,0.60808777,83001.0,83000.0,28.18071338]
[1743341259420,0.60808777,83001.0,83000.0,28.17094339]
[1743341261123,0.49280777,83001.0,83000.0,28.17094339]
[1743341261323,0.60808777,83001.0,83000.0,28.17094339]
[1743341262224,0.48417617,83001.0,83000.0,28.17094339]
[1743341265621,1.20577617,83001.0,83000.0,28.17094339]
[1743341269528,0.48417617,83001.0,83000.0,28.17094339]
[1743341269718,1.20577617,83001.0,83000.0,28.17094339]
[1743341270324,1.09049617,83001.0,83000.0,28.17094339]
[1743341270529,1.08529715,83001.0,83000.0,28.17094339]
[1743341273222,1.20577835,83001.0,83000.0,28.17094339]
[1743341274725,1.20577835,83001.0,83000.0,28.09877695]
[1743341274940,1.20577835,83001.0,83000.0,27.857607]
[1743341275135,1.20577835,83001.0,83000.0,27.84843701]
[1743341275327,1.21687394,83001.0,83000.0,27.84843701]
[1743341275527,1.22659703,83001.0,83000.0,27.84843701]
[1743341275735,1.22659703,83001.0,83000.0,27.810751]
[1743341276237,1.22759703,83001.0,83000.0,27.810751]
[1743341276421,1.22859703,83001.0,83000.0,27.810751]
[1743341278528,1.38106936,83001.0,83000.0,27.768601]
[1743341278727,1.51239251,83001.0,83000.0,27.768601]
[1743341278943,1.51231689,83001.0,83000.0,27.768601]
[1743341279625,1.51231689,83001.0,83000.0,27.71509101]
[1743341282231,1.51239076,83001.0,83000.0,27.71509101]
[1743341283439,1.51487076,83001.0,83000.0,27.71509101]
[1743341284141,1.51488308,83001.0,83000.0,27.71509101]
[1743341285040,1.51488308,83001.0,83000.0,27.70210101]
[1743341285333,1.51488308,83001.0,83000.0,27.58150469]
[1743341285933,1.51496308,83001.0,83000.0,27.58150469]
[1743341286134,1.51497214,83001.0,83000.0,27.58150469]
[1743341286842,1.51495236,83001.0,83000.0,27.58150469]
[1743341287145,1.23115688,83001.0,83000.0,27.58150469]
[1743341287744,1.23115688,83001.0,83000.0,27.54381829]
[1743341287944,1.2311544,83001.0,83000.0,27.54381829]
[1743341288142,1.23115431,83001.0,83000.0,27.54381829]
[1743341288341,1.23115455,83001.0,83000.0,27.48474829]
[1743341289044,1.23115455,83001.0,83000.0,27.36414649]
[1743341289344,1.23115455,83001.0,83000.0,27.2458456]
[1743341289545,1.23115455,83001.0,83000.0,27.21104561]
[1743341290343,1.23095234,83001.0,83000.0,27.21104561]
[1743341291552,1.22148299,83001.0,83000.0,27.21104561]
[1743341292249,1.22152299,83001.0,83000.0,27.21104561]
[1743341292449,1.21037835,83001.0,83000.0,27.21104561]
[1743341292836,1.21037835,83001.0,83000.0,27.15074471]
[1743341293038,1.21037835,83001.0,83000.0,27.09044381]
[1743341293246,1.21037835,83001.0,83000.0,27.03014291]
[1743341293644,1.21037835,83001.0,83000.0,26.99652292]
[1743341294043,1.49238941,83001.0,83000.0,26.99652292]
[1743341296352,1.49238941,83001.0,83000.0,26.95357293]
[1743341297042,1.49238941,83001.0,83000.0,26.83296893]
[1743341297442,1.49238941,83001.0,83000.0,26.80986893]
[1743341297742,1.21037835,83001.0,83000.0,26.80986893]
[1743341300547,1.21005835,83001.0,83000.0,26.80986893]
[1743341303857,1.21005835,83001.0,83000.0,26.7495679]
[1743341304048,1.21005835,83001.0,83000.0,26.68926687]
[1743341304243,1.21005835,83001.0,83000.0,26.62896584]
[1743341304448,1.21005835,83001.0,83000.0,26.50836378]
[1743341304648,1.21005835,83001.0,83000.0,26.49398378]
[1743341306155,1.21005835,83001.0,83000.0,26.48526378]
[1743341306762,1.21005835,83001.0,83000.0,26.43643768]
[1743341306952,1.21005835,83001.0,83000.0,26.37613665]
[1743341307259,1.36005835,83001.0,83000.0,22.68780063]
[1743341307457,1.36005835,83001.0,83000.0,22.62401063]
[1743341307458,1.6906487,83001.0,83000.0,22.62401063]
[1743341307761,1.71835827,83001.0,83000.0,21.887521]
[1743341307956,1.71835827,83001.0,83000.0,21.82721333]
[1743341308153,2.13705827,83001.0,83000.0,21.21768962]
[1743341308350,2.15780557,83001.0,83000.0,21.17553697]
[1743341308550,2.15780557,83001.0,83000.0,21.05492163]
[1743341308751,2.00780557,83001.0,83000.0,20.99461396]
[1743341308966,2.00780557,83001.0,83000.0,20.9175093]
[1743341309165,2.00780557,83001.0,83000.0,20.85720163]
[1743341309376,2.03619685,83001.0,83000.0,20.79689396]
[1743341309564,2.03619685,83001.0,83000.0,20.73658629]
[1743341309764,2.03619685,83001.0,83000.0,20.61597095]
[1743341309964,2.03619685,83001.0,83000.0,20.55566328]
[1743341310170,1.98619685,83001.0,83000.0,16.41524998]
[1743341310364,1.98719685,83001.0,83000.0,16.41524998]
[1743341311073,1.98819685,83001.0,83000.0,16.41524998]
[1743341311766,1.98819685,83001.0,83000.0,16.40552999]
[1743341311767,2.11140064,83001.0,83000.0,16.40552999]
[1743341312172,2.13300936,83001.0,83000.0,16.40552999]
[1743341312764,2.13292936,83001.0,83000.0,16.40552999]
[1743341313572,2.13292936,83001.0,83000.0,16.39082675]
[1743341314274,2.13292936,83001.0,83000.0,16.37798676]
[1743341314573,2.13292936,83001.0,83000.0,16.36249676]
[1743341314774,2.13292936,83001.0,83000.0,16.32814231]
[1743341315274,2.13292936,83001.0,83000.0,16.26783464]
[1743341315470,2.13284936,83001.0,83000.0,16.20752697]
[1743341315673,1.81043836,83001.0,83000.0,16.1472193]
[1743341315867,1.81043836,83001.0,83000.0,16.1144093]
[1743341316473,1.76043836,83001.0,83000.0,16.1144093]
[1743341317076,1.81043836,83001.0,83000.0,16.10630931]
[1743341317579,1.76043836,83001.0,83000.0,16.09470931]
[1743341317778,1.76043836,83001.0,83000.0,16.08060931]
[1743341318668,1.39963836,83001.0,83000.0,15.71980931]
[1743341318962,1.76043836,83001.0,83000.0,15.71980931]
[1743341319168,1.76043836,83001.0,83000.0,15.65999931]
[1743341319678,1.76043836,83001.0,83000.0,15.64615931]
[1743341320080,1.81043836,83001.0,83000.0,15.55437911]
[1743341320377,1.81043836,83001.0,83000.0,15.46266891]
[1743341320672,1.76043836,83001.0,83000.0,15.4023587]
[1743341320875,1.76043836,83001.0,83000.0,15.28173828]
[1743341321072,1.76043836,83001.0,83000.0,15.22142807]
[1743341321272,1.76043836,83001.0,83000.0,15.16111786]
[1743341321469,1.76043836,83001.0,83000.0,15.04049744]